Cogmind - Beta 14 @@@ ROGUE MODE // 2024.08.13 @ 21:44:54 Player: Gaffe Result: Destroyed by IL-LIW(R) with Subdweller Machine Gun Performance ------------- Evolutions (0) 0 Regions Visited (3) 600 Robots Destroyed (16) 80 Value Destroyed (423) 423 Prototype IDs (0) 0 Alien Tech Used (0) 0 Bonus (93) 93 TOTAL SCORE: 1196 Bonus ------- Follower Combat Kills 93 Cogmind --------- Core Integrity 0/250 Matter 300/300 Energy 43/100 System Corruption 2% Temperature Cool (0) Movement Walking (140) Location -10/Subcaves Parts ------- > --- POWER (1) -------- (None) > --- PROPULSION (2) --- Makeshift Leg > --- UTILITY (2) ------ Small Storage Unit Signal Interpreter > --- WEAPON (2) ------- Beamcaster > --- INVENTORY (8) ---- Makeshift Power Source Compact Wheel Structural Scanner Subdweller Optics Sensor Array Seismic Detector Sensor Drone Bay Light Cannon Peak State ------------ > --- POWER ------------ Improved Ion Engine > --- PROPULSION ------- Makeshift Leg Makeshift Leg > --- UTILITY ---------- Small Storage Unit Signal Interpreter > --- WEAPON ----------- Beamcaster Light Assault Rifle > --- INVENTORY -------- Light Ion Engine Compact Wheel High-capacity Matter Pod Structural Scanner Sensor Array Seismic Detector Sensor Drone Bay Light Cannon [Rating: 19] Favorites ----------- Power Improved Ion Engine Engine Improved Ion Engine Propulsion Aluminum Leg Leg Aluminum Leg Utility Small Storage Unit Device Seismic Detector Storage Small Storage Unit Processor Signal Interpreter Weapon Light Assault Rifle Energy Gun Beamcaster Ballistic Gun Light Assault Rifle Build | -11 -10 -10 -10 ------- Run | Yrd Mat Min Sub Slots Evolved . | . . . . Power . | . . . . Propulsion . | . . . . Utility . | . . . . Weapon . | . . . . Parts Attached 14 | 6 3 3 2 Power 2 | 1 . 1 . Engine 2 | 1 . 1 . Core . | . . . . Reactor . | . . . . Propulsion 5 | 2 . 1 2 Treads . | . . . . Leg 5 | 2 . 1 2 Wheel . | . . . . Hover . | . . . . Flight . | . . . . Utility 3 | 1 2 . . Device 1 | . 1 . . Storage 1 | 1 . . . Processor 1 | . 1 . . Hackware . | . . . . Protection . | . . . . Artifact . | . . . . Weapon 4 | 2 1 1 . Energy Gun 1 | . . 1 . Energy Cannon . | . . . . Ballistic Gun 3 | 2 1 . . Ballistic Cannon . | . . . . Launcher . | . . . . Special Weapon . | . . . . Impact Weapon . | . . . . Slashing Weapon . | . . . . Piercing Weapon . | . . . . Special Melee Weapon . | . . . . Unidentified Prototypes . | . . . . Parts Lost 6 | . . 2 4 Power 2 | . . 1 1 Propulsion 3 | . . 1 2 Utility . | . . . . Weapon 1 | . . . 1 Highest Loss Streak 3 | . . 1 3 To Critical Strikes . | . . . . Average Slot Usage (%) 98 | . 97 99 95 Engine 13 | . 14 13 12 Leg 27 | . 28 28 26 Device 1 | . 5 . . Storage 14 | . 14 14 14 Processor 11 | . 6 14 14 Energy Gun 8 | . . 11 14 Ballistic Gun 19 | . 28 16 13 Peak Build Rating 19 | 6 7 13 19 Average Rating 11 | 4 6 11 17 On Entrance 6 | . 6 7 13 Naked Turns . | . . . . Heaviest Build 18 | 10 11 18 18 Greatest Support 40 | 20 20 20 40 Greatest Overweight (x) 3 | 3 . 1 1 Average Overweight (x) . | . . . . Largest Inventory Capacity 8 | 8 8 8 8 Average Capacity 7 | 7 8 8 8 Most Carried 8 | 1 8 8 8 Average Carried 7 | . 6 7 7 Final Capacity 8 | 8 8 8 8 Final Carried 8 | 1 8 8 8 Class Distribution -------------------- 60% | Mutant 39% | Scavenger-Mutant Dominant Class ---------------- Mutant | -10/Materials Mutant | -10/Mines Scavenger-Mutant | -10/Subcaves Resources | -11 -10 -10 -10 ----------- Run | Yrd Mat Min Sub Matter Collected 628 | 174 107 281 66 Remotely . | . . . . Salvage Created 515 | . 118 144 253 Parts 43 | . 20 5 18 Haulers Intercepted . | . . . . Recyclers Shooed . | . . . . Parts Field Recycled . | . . . . Retrieved Matter . | . . . . Parts Self-Destructed 5 | . . . 5 Prevented . | . . . . Kills | -11 -10 -10 -10 ------- Run | Yrd Mat Min Sub Combat Hostiles Destroyed 14 | . 6 3 5 Guns 14 | . 6 3 5 Classes Destroyed 5 | . 2 2 1 Watcher 2 | . 2 . . Swarmer 6 | . 6 . . Grunt 2 | . . 2 . Sentry 2 | . . 1 1 Subdweller 4 | . . . 4 Best Kill Streak 4 | . 4 2 2 Combat Bots Only 3 | . 3 2 2 Max Kills in Single Turn 1 | . 1 1 1 Gunslinging . | . . . . Exploded . | . . . . Melee . | . . . . Uniques/NPCs Destroyed . | . . . . Combat | -11 -10 -10 -10 -------- Run | Yrd Mat Min Sub Hostile Shots Fired 94 | . 26 26 42 Missed 26 | . 4 8 14 Damage Taken 1028 | . 178 263 587 Core 253 | . 31 31 191 Absorbed by Shields . | . . . . Core Remaining (%) 100 | 100 . . . Volleys Fired 64 | . 23 14 27 Largest 2 | . 2 2 1 Hottest 95 | . 40 95 75 Shots Fired 101 | . 46 28 27 Gun 101 | . 46 28 27 Cannon . | . . . . Launcher . | . . . . Special . | . . . . Kinetic 67 | . 46 21 . Thermal 34 | . . 7 27 Explosive . | . . . . Electromagnetic . | . . . . Robot Hit Streak 24 | . 4 6 24 Robot Miss Streak 3 | . 3 3 2 Penetration Max . | . . . . Secondary Targets . | . . . . Shots Hit Robots 64 | . 25 15 24 Core Hits 29 | . 15 6 8 Critical Kills . | . . . . Critical Parts Destroyed . | . . . . Critical Strikes 3 | . . 1 2 Burn 3 | . . 1 2 Melee Attacks . | . . . . Impact . | . . . . Slashing . | . . . . Piercing . | . . . . Sneak Attacks . | . . . . Combat Hostiles . | . . . . Follow-up Attacks . | . . . . Damage Inflicted 884 | . 201 176 507 Guns 884 | . 201 176 507 Cannons . | . . . . Explosions . | . . . . Melee . | . . . . Ramming . | . . . . Kinetic 293 | . 201 92 . Thermal 591 | . . 84 507 Explosive . | . . . . Electromagnetic . | . . . . Impact . | . . . . Slashing . | . . . . Piercing . | . . . . Highest Corruption 2 | . 2 2 2 Average Corruption 2 | . 2 2 2 Corruption Purged . | . . . . Corruption Blocked . | . . . . Effects 20 | . 2 13 5 Message Errors 3 | . 1 2 . Matter Fused 5 | . . 3 2 Heat Flow Errors 2 | . . 2 . Energy Discharges 5 | . . 3 2 Data Loss (minor) 4 | . 1 2 1 Data Loss (major) 1 | . . 1 . Overload Shots . | . . . . Overflow Damage . | . . . . Projectiles . | . . . . Explosions . | . . . . Melee . | . . . . Knockbacks . | . . . . Impact . | . . . . Kinetic . | . . . . Secondary . | . . . . Self-Inflicted Damage . | . . . . Shots . | . . . . Rammed . | . . . . Targets Rammed . | . . . . Kicked . | . . . . Crushed . | . . . . Highest Temperature 354 | . . 354 20 Average Temperature 90 | . . 124 10 Received Heat Transfer 291 | . . 156 135 Effects 3 | . . 3 . Shutdowns 1 | . . 1 . Interference 2 | . . 2 . Siege Activations . | . . . . Robots Corrupted . | . . . . Combat Hostiles . | . . . . Parts Fried . | . . . . Impact Corruptions . | . . . . Robots Melted . | . . . . Combat Hostiles . | . . . . Parts Melted 2 | . . 2 . Heat Transferred 1258 | . . 222 1036 Parts Sabotaged . | . . . . Parts Stolen . | . . . . Parts Stripped . | . . . . Power Chain Reactions . | . . . . Alert | -11 -10 -10 -10 ------- Run | Yrd Mat Min Sub Peak Influence 202 | . 202 117 . Initial 24 | . . 24 . Average 58 | . 79 50 . Maximum Alert Level 1 | . 1 . . Low Security (%) 99 | 100 99 100 . Level 1 . | . . . . Level 2 . | . . . . Level 3 . | . . . . Level 4 . | . . . . Level 5 . | . . . . High Security . | . . . . Max Security . | . . . . Squads Dispatched 1 | . 1 . . Investigation . | . . . . Extermination . | . . . . Reinforcement 1 | . 1 . . Assault . | . . . . Garrison . | . . . . Intercept . | . . . . Searches Triggered . | . . . . Construction Impeded . | . . . . Haulers Reinforced . | . . . . Active Scanning Responses . | . . . . Cargo Convoy Interrupts . | . . . . Stealth | -11 -10 -10 -10 --------- Run | Yrd Mat Min Sub Distress Signals 1 | . 1 . . Communications Jammed . | . . . . Distress Signals . | . . . . Times Spotted 26 | . 14 6 6 Peak Tracking Total 4 | . 4 2 3 Tactical Retreats 1 | . 1 . . Traps | -11 -10 -10 -10 ------- Run | Yrd Mat Min Sub Traps Triggered 1 | . 1 . . Indirectly . | . . . . Trap Hack Attempts . | . . . . Triggered . | . . . . Disarmed . | . . . . Reprogrammed . | . . . . Reused . | . . . . Traps Extracted . | . . . . Installed . | . . . . Triggered . | . . . . Machines | -11 -10 -10 -10 ---------- Run | Yrd Mat Min Sub Machines Disabled . | . . . . Max in Single Turn . | . . . . Machines Repaired . | . . . . Machines Dismantled . | . . . . Machines Sabotaged . | . . . . Overloaded Fab Kills . | . . . . Hacking | -11 -10 -10 -10 --------- Run | Yrd Mat Min Sub Machines Accessed 3 | . 2 1 . Terminals 2 | . 2 . . Fabricators . | . . . . Repair Stations . | . . . . Recycling Units . | . . . . Scanalyzers . | . . . . Garrison Access . | . . . . Total Hacks 4 | . 3 1 . Successful 4 | . 3 1 . Failed . | . . . . Catastrophic . | . . . . Database Lockouts . | . . . . Manual . | . . . . Terminals 3 | . 3 . . Fabricators . | . . . . Repair Stations . | . . . . Recycling Units . | . . . . Scanalyzers . | . . . . Garrison Access . | . . . . Terminal Hacks 4 | . 3 1 . Open Door 1 | . . 1 . Emergency Access Points 1 | . 1 . . Alert Level 1 | . 1 . . Dispatch Records 1 | . 1 . . Fabricator Hacks . | . . . . Repair Station Hacks . | . . . . Recycling Unit Hacks . | . . . . Scanalyzer . | . . . . Garrison Access Hacks . | . . . . Unauthorized Hacks . | . . . . Terminals . | . . . . Fabricators . | . . . . Repair Stations . | . . . . Recycling Units . | . . . . Scanalyzers . | . . . . Garrison Access . | . . . . Data Cores Recovered . | . . . . Used . | . . . . Hacking Detections 1 | . 1 . . Full Trace Events . | . . . . Feedback Events . | . . . . Feedback Blocked . | . . . . Robot Schematics Acquired . | . . . . Robots Built . | . . . . Authchips . | . . . . Time . | . . . . Total Robot Build Rating . | . . . . Part Schematics Acquired . | . . . . Parts Built . | . . . . Authchips . | . . . . Time . | . . . . Total Part Build Rating . | . . . . Parts Repaired . | . . . . Time . | . . . . Parts Recycled . | . . . . Recycled Matter . | . . . . Retrieved Matter . | . . . . Retrieved Components . | . . . . Parts Scanalyzed . | . . . . Part Schematics Acquired . | . . . . Parts Damaged . | . . . . Bothacking | -11 -10 -10 -10 ------------ Run | Yrd Mat Min Sub Used RIF Installer . | . . . . Robots Hacked . | . . . . Non-combat . | . . . . Combat . | . . . . Robot Hacks Applied . | . . . . Relay Couplers Released . | . . . . Fabnet Peak Effective % . | . . . . Robots Rewired . | . . . . Allies Hacked . | . . . . Hacks Repelled . | . . . . Allies | -11 -10 -10 -10 -------- Run | Yrd Mat Min Sub Total Allies 2 | . . 2 . Largest Group 2 | . . 2 . Highest-Rated Group 44 | . . 44 . Highest-Rated Ally 31 | . . 31 . Total Orders . | . . . . Ally Attacks 10 | . . 10 . Total Damage 206 | . . 206 . Kills 3 | . . 3 . Allies Corrupted . | . . . . Allies Melted . | . . . . Intel | -11 -10 -10 -10 ------- Run | Yrd Mat Min Sub Robot Analysis Total . | . . . . Derelict Logs Recovered 2 | . . 1 1 Drone Launches . | . . . . Drone Recoveries . | . . . . Exploration | -11 -10 -10 -10 ------------- Run | Yrd Mat Min Sub Turns Passed 1894 | 55 506 879 454 Spaces Moved 1241 | 42 287 646 266 Core 15 | 15 . . . Treads . | . . . . Legs 1226 | 27 287 646 266 Wheels . | . . . . Hover . | . . . . Flight . | . . . . Fastest Speed 50 | 50 120 120 120 Average Speed 123 | 108 120 120 139 Slowest Speed 200 | 200 120 190 190 Overloaded Moves . | . . . . Propulsion Burnouts . | . . . . Robots Hopped . | . . . . Cave-ins Triggered . | . . . . Exploration Rate (%) 47 | 5 58 98 27 Regions Visited 3 Branch Regions 2 Pre-discovered Areas 2 | . . 1 1 Known Exits Taken 2 | . 1 1 . Unknown Exits Taken 1 | 1 . . . Scrap Searched 1 | . . 1 . Spaces Dug . | . . . . Terrain Destroyed . | . . . . Melee . | . . . . Projectile . | . . . . AOE . | . . . . Terrain Rammed . | . . . . Walls Destroyed . | . . . . Machines Disabled . | . . . . Actions | -11 -10 -10 -10 --------- Run | Yrd Mat Min Sub Total 1508 | 48 412 725 323 Wait 170 | . 87 60 23 Move 1238 | 41 286 645 266 Hop . | . . . . Pick Up 14 | 1 10 1 2 Fast Attach 12 | 6 1 3 2 Attach 1 | . 1 . . Detach . | . . . . Swap 1 | . 1 . . Drop 8 | . 3 2 3 Fire 64 | . 23 14 27 Melee . | . . . . Ram . | . . . . Kick . | . . . . Crush . | . . . . Escape Stasis . | . . . . Rewire . | . . . . Trap . | . . . . Miscellaneous . | . . . . Route ------- -11/Scrapyard -10/Materials (discovered 3 exits: *Mat / *Min x2) -10/Mines (discovered 3 exits: *Mat x2 / *Sub) -10/Subcaves History --------- Turn | Location | Event 2 | -11/Scrapyard | Met Revision 17 30 | -11/Scrapyard | Discovered new exit (range 15) 56 | -11/Scrapyard | Entered Materials 65 | -10/Materials | Discovered new exit (range 16) 307 | -10/Materials | Build established: Mutant 328 | -10/Materials | Discovered new exit (range 10) 342 | -10/Materials | Identified exit to Materials 478 | -10/Materials | Discovered new exit (range 13) 527 | -10/Materials | Identified exit to Mines 562 | -10/Materials | Entered Mines 692 | -10/Mines | Discovered exit to Materials (range 13) 920 | -10/Mines | Found the Drone Emporium 925 | -10/Mines | Found Prototype Device 1215 | -10/Mines | Learned Materials emergency access door positions 1234 | -10/Mines | Discovered exit to Materials (range 12) 1240 | -10/Mines | Learned location of Storage (-7) 1423 | -10/Mines | Build established: Scavenger-Mutant 1426 | -10/Mines | Discovered new exit (range 13) 1439 | -10/Mines | Identified exit to Subcaves 1441 | -10/Mines | Entered Subcaves 1453 | -10/Subcaves | Learned location of Zion (-7) 1453 | -10/Subcaves | Met a Zionite searching for "candidates" 1775 | -10/Subcaves | A swath of the cavern ceiling suddenly collapsed 1790 | -10/Subcaves | A swath of the cavern ceiling suddenly collapsed 1844 | -10/Subcaves | Core integrity fell below 50% 1852 | -10/Subcaves | Core integrity fell below 20% 1895 | -10/Subcaves | Destroyed by IL-LIW(R) with Subdweller Machine Gun Last Messages --------------- Data stored: Mines entrances (x2). Heat Sink fries itself beyond repair. Hvy. Assault Rifle fries itself beyond repair. System corrupted: Energy discharge (-84). System corrupted: Matter fused (-10). 4H-O3W(u) builds Twisted Machinery. A swath of the cavern ceiling suddenly collapses. O4-H5Y(R): "NOSTUCKSUB!" Acquired 7 matter. JB-1XT(R): "NOSTUCKSUB!" IL-LIW(R): "ARGHSUB!" Imp. Ion Engine destroyed. O4-H5Y(R) suffers critical hit (Burn). O4-H5Y(R) destroyed. JB-1XT(R) destroyed. Lgt. Assault Rifle destroyed. Mak. Leg destroyed. IL-LIW(R) affixes Scrap Shield Fragment to Scrap Shield. Map ----- +----------------------------------------------------+ | ?????????????????????????????????????????????????? | | ?????????????????????????????????????????????????? | | ?????????????????????????????????????????????????? | | ?????????????????????????????????????????????????? | | ?????????????????????????????????????????????????? | | ?????????????????????????????????????????????????? | | ?????????????????????????????????????????????????? | | ?????????????????????????????????????????????????? | | ?????????????????????????????????????????????????? | | ???????"?????????????????????????????????????????? | | ???????" ????????????????????????????????????????? | | ?????? ??????????????????????????????????????? | | ?????? ??????????#####????###???????????????? | | ???????#" ?????????# ###### #???????????????# | | ???????#" = ??####?# ## #?###?????####### | | ???????# = ?# %### % ### ##??### ## " | | ???????#" # #### " | | ????????#"" ## " " | | ????# "" " ### ###" | | ?????# %###" ## ## ## ####"# | | ???????? ## ## ## " ## ##??##" | | ??????# ## ## % #"" ????# | | ??????# ### ##### "###### ###???" | | ?????? ??# ##??##""# ### ##???? | | ?????? ??# ###?####""###?###????? | | ?????? ### #??# @ ###"""""""#????????? | | ??????????## ##???#; ;;;;# ?????????? | | ???????????## #???####%! # #;;# ??????????? | | ????????????###???## &&R ;;;;"# ??????????? | | ????????????????### %! ;##### ???????????? | | ????????????????# ###??? ??????????????? | | ????????????????# #####???????????????????????? | | ????????????????# ##???????????????????????????? | | ????????????????#####????????????????????????????? | | ?????????????????????????????????????????????????? | | ?????????????????????????????????????????????????? | | ?????????????????????????????????????????????????? | | ?????????????????????????????????????????????????? | | ?????????????????????????????????????????????????? | | ?????????????????????????????????????????????????? | | ?????????????????????????????????????????????????? | | ?????????????????????????????????????????????????? | | ?????????????????????????????????????????????????? | | ?????????????????????????????????????????????????? | | ?????????????????????????????????????????????????? | | ?????????????????????????????????????????????????? | | ?????????????????????????????????????????????????? | | ?????????????????????????????????????????????????? | | ?????????????????????????????????????????????????? | | ?????????????????????????????????????????????????? | +----------------------------------------------------+ Best States ------------- Heat Dissipation 25 Energy Generation 12 Energy Capacity 265 Matter Stores 300 Matter Capacity 300 Sight Range 16 Terrain Scan Density 10 Evasion (%) 55 Item Schematics ----------------- None Robot Schematics ------------------ None Fabricated ------------ Nothing Alien Tech Used ----------------- None Achievements -------------- None Challenges ------------ None Game ------ Seed SpreadTrapManipulator Manual? 0 Play Time 00:24:41 Cumulative 8.4 hours Start 2024.08.13 @ 21:21:31 End 2024.08.13 @ 21:44:54 Sessions 1 Manual Loads 0 Difficulty Rogue Special Mode None Game No. 12 Rogue 12 Adventurer 0 Explorer 0 Win Type - Total 0 Types 0/0/0/0/0/0/0/0/0 Lore% 6 Gallery% 11 Achievement% 10 Wizard Run 0 Options --------- Layout 1 ASCII 0 Keyboard 0 Movement Mouse Keybinds 0 Fullscreen 2 Font 32/SmallcapsGlow Map View 50x35 Zoom Use 0% Tactical HUD 0 Map Filters NONE Filters NONE Steam 1 RUN: 3d8ff341-fd9f-4863-a03f-445b2206a1fe